fUSD/lending_fUSD_20240428
["ID","MTS","AMOUNT","RATE_DAILY","PERIOD"]
[323780636,1714288252621,-674.51,0.00016986,2]
[323780637,1714288252630,-902.12,0.00016986,2]
[323780638,1714288252639,-636.72483815,0.00016986,2]
[323780639,1714288252648,-500.0,0.00016986,2]
[323780640,1714288252657,-500.0,0.00016986,2]
[323780641,1714288252666,-502.38759119,0.00016986,2]
[323780642,1714288252675,-500.0,0.00016986,2]
[323780643,1714288252685,-510.6786639,0.00016986,2]
[323780644,1714288252694,-500.0,0.00016986,2]
[323780645,1714288252703,-500.0,0.00016986,2]
[323780646,1714288252712,-2653.69,0.00016986,2]
[323780647,1714288252722,-500.0,0.00016986,2]
[323780648,1714288252731,-500.0,0.00016986,2]
[323780649,1714288252741,-500.0,0.00016986,2]
[323780650,1714288252750,-500.0,0.00016986,2]
[323780651,1714288252759,-500.0,0.00016986,2]
[323780652,1714288252769,-922.8,0.00016986,2]
[323780653,1714288252778,-500.0,0.00016986,2]
[323780654,1714288252787,-500.0,0.00016986,2]
[323780655,1714288252797,-500.0,0.00016986,2]
[323780656,1714288252806,-342.70247205,0.00016986,2]
[323780657,1714288252816,-1439.61,0.00016986,2]
[323780658,1714288252825,-607.99,0.00016986,2]
[323780659,1714288252836,-500.0,0.00016986,2]
[323780660,1714288252846,-500.0,0.00016986,2]
[323780661,1714288252855,-500.0,0.00016986,2]
[323780662,1714288252864,-529.69,0.00016986,2]
[323780663,1714288252874,-1175.44,0.00016986,2]
[323780664,1714288252883,-953.07,0.00016986,2]
[323780665,1714288252893,-500.0,0.00016986,2]
[323780666,1714288252902,-500.0,0.00016986,2]
[323780667,1714288252911,-661.72,0.00016986,2]
[323780668,1714288252920,-500.0,0.00016986,2]
[323780669,1714288252930,-1071.74,0.00016986,2]
[323780670,1714288252939,-496.79657504,0.00016986,2]
[323780671,1714288253042,-3.20342496,0.00016986,2]
[323780672,1714288253053,-632.70226052,0.00016986,2]
[323780673,1714288253495,-1079.68,0.00016438,2]
[323780674,1714288253506,-500.0,0.00016712,2]
[323780675,1714288253515,-368.18925931,0.00016712,2]
[323780676,1714288253531,-512.0,0.00016712,2]
[323780677,1714288253547,-199.49074069,0.00016712,2]
[323780678,1714288253557,-175.0736975,0.00016986,2]
[323780679,1714288254356,-261.41672302,0.00016986,2]
[323780680,1714288254369,-133.64731896,0.00016986,2]
[323780681,1714288254378,-121.05558984,0.00016986,2]
[323780682,1714288255156,-500.0,0.00016438,2]
[323780683,1714288255166,-664.91,0.00016438,2]
[323780684,1714288255175,-620.5,0.00016438,2]
[323780685,1714288255184,-620.5,0.00016438,2]
[323780686,1714288255194,-500.0,0.00016438,2]
[323780687,1714288255203,-620.5,0.00016438,2]
[323780688,1714288255213,-500.0,0.00016712,2]
[323780689,1714288255222,-664.91,0.00016712,2]
[323780690,1714288255233,-500.0,0.00016712,2]
[323780691,1714288255242,-1056.94441016,0.00016986,2]
[323780692,1714288255252,-613.03852289,0.00016986,2]
[323780693,1714288255261,-1271.42,0.00016986,2]
[323780694,1714288255271,-845.31,0.00016986,2]
[323780695,1714288255281,-500.0,0.00016986,2]
[323780696,1714288255290,-503.25197316,0.00016986,2]
[323780697,1714288255299,-506.36568169,0.00016986,2]
[323780698,1714288255309,-541.99,0.00016986,2]
[323780699,1714288255319,-628.28,0.00016986,2]
[323780700,1714288255328,-500.0,0.00016986,2]
[323780701,1714288255337,-539.86,0.00016986,2]
[323780702,1714288255347,-641.76,0.00016986,2]
[323780703,1714288255356,-500.0,0.00016986,2]
[323780704,1714288255366,-1072.98,0.00016986,2]
[323780705,1714288255376,-500.0,0.00016986,2]
[323780706,1714288255385,-500.0,0.00016986,2]
[323780707,1714288255395,-2141.35,0.00016986,2]
[323780708,1714288255405,-500.0,0.00016986,2]
[323780709,1714288255414,-500.0,0.00016986,2]
[323780710,1714288255424,-500.0,0.00016986,2]
[323780711,1714288255433,-578.54,0.00016986,2]
[323780712,1714288255442,-531.06,0.00016986,2]
[323780713,1714288255452,-500.0,0.00016986,2]
[323780714,1714288255461,-518.3,0.00016986,2]
[323780715,1714288255470,-1814.39,0.00016986,2]
[323780716,1714288255479,-564.33,0.00016986,2]
[323780717,1714288255488,-539.99,0.00016986,2]
[323780718,1714288255498,-500.0,0.00016986,2]
[323780719,1714288255507,-500.0,0.00016986,2]
[323780720,1714288255516,-583.21,0.00016986,2]
[323780721,1714288255525,-500.0,0.00016986,2]
[323780722,1714288255534,-579.1,0.00016986,2]
[323780723,1714288255543,-556.42,0.00016986,2]
[323780724,1714288255554,-1048.44,0.00016986,2]
[323780725,1714288255563,-955.06,0.00016986,2]
[323780726,1714288255572,-500.0,0.00016986,2]
[323780727,1714288255581,-500.0,0.00016986,2]
[323780728,1714288255591,-1823.64,0.00016986,2]
[323780729,1714288255601,-443.43382115,0.00016986,2]
[323780730,1714288255610,-500.0,0.00016986,2]
[323780731,1714288255620,-697.66,0.00016986,2]
[323780732,1714288255630,-546.22,0.00016986,2]
[323780733,1714288255639,-575.31,0.00016986,2]
[323780734,1714288255649,-500.0,0.00016986,2]
[323780735,1714288255660,-519.08,0.00016986,2]
[323780736,1714288255669,-1942.9,0.00016986,2]
[323780737,1714288255678,-573.15,0.00016986,2]
[323780738,1714288255686,-500.0,0.00016986,2]
[323780739,1714288255695,-518.65,0.00016986,2]
[323780740,1714288255705,-502.9,0.00016986,2]
[323780741,1714288255716,-933.09,0.00016986,2]
[323780742,1714288255727,-1083.3,0.00016986,2]
[323780743,1714288255737,-500.74294811,0.00016986,2]
[323780744,1714288255746,-1052.22,0.00016986,2]
[323780745,1714288255756,-835.21,0.00016986,2]
[323780746,1714288255765,-500.0,0.00016986,2]
[323780747,1714288255775,-970.41,0.00016986,2]
[323780748,1714288255784,-500.0,0.00016986,2]
[323780749,1714288255793,-506.38443538,0.00016986,2]
[323780750,1714288255802,-885.97,0.00016986,2]
[323780751,1714288255812,-500.0,0.00016986,2]
[323780752,1714288255821,-662.38,0.00016986,2]
[323780753,1714288255830,-500.0,0.00016986,2]
[323780754,1714288255839,-1026.29,0.00016986,2]
[323780755,1714288255848,-500.0,0.00016986,2]
[323780756,1714288255858,-500.0,0.00016986,2]
[323780757,1714288255867,-635.2,0.00016986,2]
[323780758,1714288255876,-500.0,0.00016986,2]
[323780759,1714288255885,-500.0,0.00016986,2]
[323780760,1714288255896,-789.86,0.00016986,2]
[323780761,1714288255906,-500.0,0.00016986,2]
[323780762,1714288255915,-590.75,0.00016986,2]
[323780763,1714288255924,-1732.71,0.00016986,2]
[323780764,1714288255938,-869.8,0.00016986,2]
[323780765,1714288255947,-500.0,0.00016986,2]
[323780766,1714288255957,-500.0,0.00016986,2]
[323780767,1714288255966,-524.2,0.00016986,2]
[323780768,1714288255975,-1406.37,0.00016986,2]
[323780769,1714288255984,-500.0,0.00016986,2]
[323780770,1714288255994,-174.11,0.00016986,2]
[323780771,1714288256005,-525.8,0.00016986,2]
[323780772,1714288256014,-568.75,0.00016986,2]
[323780773,1714288256024,-500.0,0.00016986,2]
[323780774,1714288256033,-558.33,0.00016986,2]
[323780775,1714288256042,-500.0,0.00016986,2]
[323780776,1714288256054,-500.0,0.00016986,2]
[323780777,1714288256063,-683.39,0.00016986,2]
[323780778,1714288256074,-1055.23,0.00016986,2]
[323780779,1714288256083,-500.0,0.00016986,2]
[323780780,1714288256092,-626.62,0.00016986,2]
[323780781,1714288256101,-500.0,0.00016986,2]
[323780782,1714288256110,-1552.14,0.00016986,2]
[323780783,1714288256120,-500.0,0.00016986,2]
[323780784,1714288256129,-1041.3,0.00016986,2]
[323780785,1714288256139,-1086.51,0.00016986,2]
[323780786,1714288256148,-500.0,0.00016986,2]
[323780787,1714288256157,-500.0,0.00016986,2]
[323780788,1714288256165,-500.0,0.00016986,2]
[323780789,1714288256174,-500.0,0.00016986,2]
[323780790,1714288256183,-527.0,0.00016986,2]
[323780791,1714288256192,-656.31,0.00016986,2]
[323780792,1714288256200,-500.0,0.00016986,2]
[323780793,1714288256210,-724.1,0.00016986,2]
[323780794,1714288256218,-500.0,0.00016986,2]
[323780795,1714288256227,-500.0,0.00016986,2]
[323780796,1714288256416,-621.33,0.00016986,2]
[323780797,1714288256433,-500.0,0.00016986,2]
[323780798,1714288256444,-500.0,0.00016986,2]
[323780799,1714288256453,-858.5,0.00016986,2]
[323780800,1714288256464,-1623.41,0.00016986,2]
[323780801,1714288256473,-1807.33,0.00016986,2]
[323780802,1714288256483,-152.33058877,0.00016986,2]
[323780803,1714288256495,-561.09,0.00016986,2]
[323780804,1714288256505,-500.0,0.00016986,2]
[323780805,1714288256514,-520.6113674,0.00016986,2]
[323780806,1714288256524,-500.0,0.00016986,2]
[323780807,1714288256534,-500.0,0.00016986,2]
[323780808,1714288256545,-1581.66,0.00016986,2]
[323780809,1714288256554,-773.89,0.00016986,2]
[323780810,1714288256563,-500.0,0.00016986,2]
[323780811,1714288256572,-500.0,0.00016986,2]
[323780812,1714288256581,-500.0,0.00016986,2]
[323780813,1714288256590,-572.21988631,0.00016986,2]
[323780814,1714288256599,-500.0,0.00016986,2]
[323780815,1714288256608,-663.0,0.00016986,2]
[323780816,1714288256618,-883.12,0.00016986,2]
[323780817,1714288256629,-500.0,0.00016986,2]
[323780818,1714288256638,-1057.44,0.00016986,2]
[323780819,1714288256647,-500.0,0.00016986,2]
[323780820,1714288256657,-511.24406114,0.00016986,2]
[323780821,1714288256666,-500.0,0.00016986,2]
[323780822,1714288256677,-1761.73,0.00016986,2]
[323780823,1714288256687,-500.0,0.00016986,2]
[323780824,1714288256697,-500.0,0.00016986,2]
[323780825,1714288256706,-500.0,0.00016986,2]
[323780826,1714288256716,-500.0,0.00016986,2]
[323780827,1714288256725,-671.04,0.00016986,2]
[323780828,1714288256734,-500.0,0.00016986,2]
[323780829,1714288256743,-1243.4,0.00016986,2]
[323780830,1714288256752,-925.01,0.00016986,2]
[323780831,1714288256762,-1150.58,0.00016986,2]
[323780832,1714288256772,-503.35,0.00016986,2]
[323780833,1714288256782,-580.43,0.00016986,2]
[323780834,1714288256792,-1427.64,0.00016986,2]
[323780835,1714288256802,-886.94,0.00016986,2]
[323780836,1714288256811,-429.93358845,0.00016986,2]
[323780837,1714288256819,-500.0,0.00016986,2]
[323780838,1714288256831,-500.0,0.00016986,2]
[323780839,1714288256840,-967.01,0.00016986,2]
[323780840,1714288256849,-802.98,0.00016986,2]
[323780841,1714288256859,-500.0,0.00016986,2]
[323780842,1714288256868,-500.0,0.00016986,2]
[323780843,1714288256877,-500.0,0.00016986,2]
[323780844,1714288256885,-500.0,0.00016986,2]
[323780845,1714288256894,-500.0,0.00016986,2]
[323780846,1714288256903,-641.56,0.00016986,2]
[323780847,1714288256912,-886.62,0.00016986,2]
[323780848,1714288256921,-500.0,0.00016986,2]
[323780849,1714288256930,-831.13,0.00016986,2]
[323780850,1714288256939,-500.0,0.00016986,2]
[323780851,1714288256949,-500.0,0.00016986,2]
[323780852,1714288256958,-500.0,0.00016986,2]
[323780853,1714288256967,-500.0,0.00016986,2]
[323780854,1714288256976,-500.0,0.00016986,2]
[323780855,1714288256985,-500.0,0.00016986,2]
[323780856,1714288256996,-1536.74,0.00016986,2]
[323780857,1714288257008,-622.3,0.00016986,2]
[323780858,1714288257017,-1989.61,0.00016986,2]
[323780859,1714288257028,-505.71671684,0.00016986,2]
[323780860,1714288257039,-500.0,0.00016986,2]
[323780861,1714288257049,-500.0,0.00016986,2]
[323780862,1714288257059,-500.0,0.00016986,2]
[323780863,1714288257068,-575.65,0.00016986,2]
[323780864,1714288257078,-2735.22,0.00016986,2]
[323780865,1714288257087,-1277.84,0.00016986,2]
[323780866,1714288257098,-500.0,0.00016986,2]
[323780867,1714288257109,-907.96,0.00016986,2]
[323780868,1714288257118,-507.9,0.00016986,2]
[323780869,1714288257128,-500.0,0.00016986,2]
[323780870,1714288257138,-500.0,0.00016986,2]
[323780871,1714288257147,-5121.81,0.00016986,2]
[323780872,1714288257156,-191.26416843,0.00016986,2]
[323780873,1714288257166,-972.28,0.00016986,2]
[323780874,1714288257176,-1735.59,0.00016986,2]
[323780875,1714288257185,-3107.52,0.00016986,2]
[323780876,1714288257195,-500.0,0.00016986,2]
[323780877,1714288257204,-2835.62,0.00016986,2]
[323780878,1714288257213,-500.0,0.00016986,2]
[323780879,1714288257222,-1453.27,0.00016986,2]
[323780880,1714288257231,-1715.24,0.00016986,2]
[323780881,1714288257241,-500.0,0.00016986,2]
[323780882,1714288257250,-500.0,0.00016986,2]
[323780883,1714288257260,-21011.8,0.00016986,2]
[323780884,1714288257270,-1557.18,0.00016986,2]
[323780885,1714288257279,-3723.69,0.00016986,2]
[323780886,1714288257289,-4712.55,0.00016986,2]
[323780887,1714288257298,-500.0,0.00016986,2]
[323780888,1714288257307,-51006.55,0.00016986,2]
[323780889,1714288257316,-500.0,0.00016986,2]
[323780890,1714288257325,-500.0,0.00016986,2]
[323780891,1714288257336,-1077.14,0.00016986,2]
[323780892,1714288257346,-500.0,0.00016986,2]
[323780893,1714288257356,-11253.96,0.00016986,2]
[323780894,1714288257365,-656.91,0.00016986,2]
[323780895,1714288257374,-2793.85,0.00016986,2]
[323780896,1714288257383,-2818.11,0.00016986,2]
[323780897,1714288257392,-4600.94,0.00016986,2]
[323780898,1714288257401,-766.0,0.00016986,2]
[323780899,1714288257411,-500.0,0.00016986,2]
[323780900,1714288257420,-4200.17,0.00016986,2]
[323780901,1714288257431,-522.33,0.00016986,2]
[323780902,1714288257440,-2570.53,0.00016986,2]
[323780903,1714288257449,-500.0,0.00016986,2]
[323780904,1714288257459,-2350.36,0.00016986,2]
[323780905,1714288257468,-1459.2,0.00016986,2]
[323780906,1714288257479,-500.0,0.00016986,2]
[323780907,1714288257488,-1321.63,0.00016986,2]
[323780908,1714288257498,-4519.89,0.00016986,2]
[323780909,1714288257508,-2788.73,0.00016986,2]
[323780910,1714288257517,-500.0,0.00016986,2]
[323780911,1714288257528,-8309.55,0.00016986,2]
[323780912,1714288257537,-500.0,0.00016986,2]
[323780913,1714288257547,-372.64135352,0.00016986,2]
[323780914,1714288257556,-500.0,0.00016986,2]
[323780915,1714288257566,-1573.16,0.00016986,2]
[323780916,1714288257575,-681.44,0.00016986,2]
[323780917,1714288257585,-500.0,0.00016986,2]
[323780918,1714288257594,-4655.9,0.00016986,2]
[323780919,1714288257603,-529.63,0.00016986,2]
[323780920,1714288257613,-500.0,0.00016986,2]
[323780921,1714288257622,-500.0,0.00016986,2]
[323780922,1714288257632,-6276.12,0.00016986,2]
[323780923,1714288257643,-1966.95,0.00016986,2]
[323780924,1714288257654,-851.68,0.00016986,2]
[323780925,1714288257663,-1639.46,0.00016986,2]
[323780926,1714288257672,-500.0,0.00016986,2]
[323780927,1714288257682,-500.0,0.00016986,2]
[323780928,1714288257691,-2533.48,0.00016986,2]
[323780929,1714288257700,-500.0,0.00016986,2]
[323780930,1714288257710,-2619.38,0.00016986,2]
[323780931,1714288257719,-3229.5124766,0.00016986,2]
[323780932,1714288258226,-228.53431982,0.00016436,2]
[323780933,1714288258237,-335.95445521,0.00016437,2]
[323780934,1714288258248,-13.67922497,0.00016438,2]
[323780935,1714288258260,-606.82077503,0.00016438,2]
[323780936,1714288258271,-620.5,0.00016438,2]
[323780937,1714288258280,-620.5,0.00016438,2]
[323780938,1714288258289,-620.5,0.00016438,2]
[323780939,1714288258298,-500.0,0.00016438,2]
[323780940,1714288258309,-262.08320894,0.0001671,2]
[323780941,1714288258318,-620.5,0.00016711,2]
[323780942,1714288258328,-620.5,0.00016711,2]
[323780943,1714288258339,-620.5,0.00016985,2]
[323780944,1714288258350,-620.5,0.00016985,2]
[323780945,1714288258360,-620.5,0.00016985,2]
[323780946,1714288258369,-7115.1675234,0.00016986,2]
[323780947,1714288258378,-13708.37,0.00016986,2]
[323780948,1714288258387,-500.0,0.00016986,2]
[323780949,1714288258396,-1094.79,0.00016986,2]
[323780950,1714288258405,-552.48,0.00016986,2]
[323780951,1714288258415,-1372.92,0.00016986,2]
[323780952,1714288258424,-519.84,0.00016986,2]
[323780953,1714288258433,-969.89,0.00016986,2]
[323780954,1714288258442,-5155.94,0.00016986,2]
[323780955,1714288258452,-553.42,0.00016986,2]
[323780956,1714288258461,-500.0,0.00016986,2]
[323780957,1714288258470,-500.0,0.00016986,2]
[323780958,1714288258479,-571.46,0.00016986,2]
[323780959,1714288258490,-1448.38,0.00016986,2]
[323780960,1714288258499,-3440.86,0.00016986,2]
[323780961,1714288258508,-1283.73,0.00016986,2]
[323780962,1714288258517,-6023.3,0.00016986,2]
[323780963,1714288258685,-2269.29,0.00016986,2]
[323780964,1714288258716,-2295.92,0.00016986,2]
[323780965,1714288258725,-8486.11,0.00016986,2]
[323780966,1714288258735,-71029.5,0.00016986,2]
[323780967,1714288258744,-500.0,0.00016986,2]
[323780968,1714288258753,-509.35,0.00016986,2]
[323780969,1714288258763,-500.0,0.00016986,2]
[323780970,1714288258772,-500.0,0.00016986,2]
[323780971,1714288258781,-2587.02,0.00016986,2]
[323780972,1714288258791,-1155.36,0.00016986,2]
[323780973,1714288258800,-2367.02,0.00016986,2]
[323780974,1714288258810,-500.0,0.00016986,2]
[323780975,1714288258819,-500.0,0.00016986,2]
[323780976,1714288258829,-2378.08,0.00016986,2]
[323780977,1714288258839,-1751.04,0.00016986,2]
[323780978,1714288258849,-18882.81,0.00016986,2]
[323780979,1714288258859,-500.0,0.00016986,2]
[323780980,1714288258869,-3774.4,0.00016986,2]
[323780981,1714288258879,-500.0,0.00016986,2]
[323780982,1714288258890,-1092.02,0.00016986,2]
[323780983,1714288258899,-1948.48,0.00016986,2]
[323780984,1714288258909,-500.0,0.00016986,2]
[323780985,1714288258919,-2273.03,0.00016986,2]
[323780986,1714288258929,-2289.64,0.00016986,2]
[323780987,1714288258938,-500.0,0.00016986,2]
[323780988,1714288258947,-1870.29,0.00016986,2]
[323780989,1714288258956,-500.0,0.00016986,2]
[323780990,1714288258966,-852.76,0.00016986,2]
[323780991,1714288258975,-3856.23011601,0.00016986,2]
[323780992,1714288258988,-270.42728545,0.00016986,2]
[323780993,1714288259006,-667.61,0.00016986,2]
[323781006,1714288791094,-600.0,0.00022,23]
[323781024,1714289432322,-578.88074338,0.00012287,2]
[323781025,1714289432331,-273.34,0.00012288,2]
[323781026,1714289432340,-332.04,0.00013649,2]
[323781027,1714289432353,-3000.0,0.00014463,7]
[323781028,1714289432362,-313.82,0.00014863,2]
[323781029,1714289432371,-2159.00902418,0.00014998,2]
[323781030,1714289432432,-285.89097582,0.00014998,2]
[323781031,1714289432442,-256.96280775,0.00015,2]
[323781032,1714289432452,-500.0,0.00015011,2]
[323781033,1714289432461,-250.0,0.00015039,2]
[323781034,1714289432471,-54.22294337,0.00015051,2]
[323781101,1714289439063,-117.76705663,0.00015051,2]
[323781102,1714289439073,-150.99,0.00015051,2]
[323781103,1714289439082,-250.0,0.00015069,2]
[323781104,1714289439092,-150.0,0.00015156,2]
[323781105,1714289439102,-150.0,0.00015156,2]
[323781106,1714289439113,-11445.84,0.00015157,2]
[323781107,1714289439121,-258.28,0.00015233,2]
[323781108,1714289439130,-170.99,0.00015271,2]
[323781109,1714289439139,-9999.99,0.00015271,2]
[323781110,1714289439148,-1529.79,0.00015356,2]
[323781111,1714289439157,-200.0,0.00015356,2]
[323781112,1714289439166,-812.48,0.00015399,3]
[323781113,1714289439175,-150.99,0.00015441,2]
[323781114,1714289439184,-207.83,0.00015485,2]
[323781115,1714289439193,-439.7,0.00015501,2]
[323781116,1714289439202,-726.49,0.00015826,2]
[323781117,1714289439211,-177.14,0.00015866,2]
[323781118,1714289439220,-332.04,0.00015913,2]
[323781119,1714289439229,-170.99,0.00016067,2]
[323781120,1714289439238,-3526.4,0.00016208,2]
[323781121,1714289439247,-150.0,0.00016329,2]
[323781122,1714289439256,-6939.71223743,0.00016338,2]
[323781123,1714289439265,-817.233,0.00016338,2]
[323781124,1714289439274,-21065.8455,0.00016338,2]
[323781125,1714289439283,-531.673,0.00016338,2]
[323781126,1714289439291,-187.7,0.00016364,2]
[323781127,1714289439300,-156.83,0.00016428,2]
[323781128,1714289439310,-156.06645313,0.00016436,2]
[323781129,1714289439319,-685.0,0.00016438,2]
[323781130,1714289439328,-500.0,0.00016438,2]
[323781131,1714289439337,-500.0,0.00016438,2]
[323781132,1714289439347,-500.0,0.00016438,2]
[323781133,1714289439360,-500.0,0.00016438,2]
[323781134,1714289439369,-500.0,0.00016438,2]
[323781135,1714289439378,-500.0,0.00016438,2]
[323781136,1714289439387,-500.0,0.00016438,2]
[323781137,1714289439396,-500.0,0.00016438,2]
[323781138,1714289439406,-500.0,0.00016438,2]
[323781139,1714289439415,-500.0,0.00016438,2]
[323781140,1714289439424,-500.7257356,0.00016438,2]
[323781141,1714289439433,-500.89882224,0.00016438,2]
[323781142,1714289439443,-500.0,0.00016438,2]
[323781143,1714289439452,-500.0,0.00016438,2]
[323781144,1714289439461,-500.0,0.00016438,2]
[323781145,1714289439470,-500.0,0.00016438,2]
[323781146,1714289439480,-288.24366607,0.00016438,2]
[323781147,1714289439489,-500.0,0.00016438,2]
[323781148,1714289439499,-552.56596368,0.00016438,2]
[323781149,1714289439508,-500.0,0.00016438,2]
[323781150,1714289439517,-500.0,0.00016438,2]
[323781151,1714289439526,-500.0,0.00016438,2]
[323781152,1714289439537,-594.27536183,0.00016438,2]
[323781153,1714289439546,-500.0,0.00016438,2]
[323781154,1714289439555,-500.0,0.00016438,2]
[323781155,1714289439564,-503.04178452,0.00016438,2]
[323781156,1714289439573,-502.80280371,0.00016438,2]
[323781157,1714289439582,-501.29538409,0.00016438,2]
[323781158,1714289439591,-500.0,0.00016438,2]
[323781159,1714289439601,-497.81971085,0.00016438,2]
[323781160,1714289439611,-500.0,0.00016438,2]
[323781161,1714289439620,-500.81226002,0.00016438,2]
[323781162,1714289439630,-500.0,0.00016438,2]
[323781163,1714289439639,-500.0,0.00016438,2]
[323781164,1714289439648,-500.0,0.00016438,2]
[323781165,1714289439657,-500.56079763,0.00016438,2]
[323781166,1714289439667,-501.65126455,0.00016438,2]
[323781167,1714289439677,-503.88062961,0.00016438,2]
[323781168,1714289439686,-216.11502074,0.00016438,2]
[323781169,1714289439695,-500.74741275,0.00016438,2]
[323781170,1714289439704,-302.40891983,0.00016438,2]
[323781171,1714289439714,-500.0,0.00016438,2]
[323781172,1714289439724,-531.82901438,0.00016438,2]
[323781173,1714289439733,-388.10938719,0.00016438,2]
[323781174,1714289439742,-502.75422526,0.00016438,2]
[323781175,1714289439752,-500.0,0.00016438,2]
[323781176,1714289439763,-916.6,0.00016438,2]
[323781177,1714289439772,-521.85806789,0.00016438,2]
[323781178,1714289439781,-500.0,0.00016438,2]
[323781179,1714289439791,-503.2015896,0.00016438,2]
[323781180,1714289439800,-500.0,0.00016438,2]
[323781181,1714289439809,-500.0,0.00016438,2]
[323781182,1714289439818,-500.0,0.00016438,2]
[323781183,1714289439828,-500.0,0.00016438,2]
[323781184,1714289439837,-762.46,0.00016438,2]
[323781185,1714289439847,-500.0,0.00016438,2]
[323781186,1714289439856,-509.5061273,0.00016438,2]
[323781187,1714289439865,-500.0,0.00016438,2]
[323781188,1714289439874,-500.0,0.00016438,2]
[323781189,1714289439883,-502.68584487,0.00016438,2]
[323781190,1714289439894,-328.82819812,0.00016438,2]
[323781191,1714289439903,-500.0,0.00016438,2]
[323781192,1714289439913,-511.87,0.00016438,2]
[323781193,1714289439923,-505.19,0.00016438,2]
[323781194,1714289439932,-500.0,0.00016438,2]
[323781195,1714289439943,-665.92,0.00016438,2]
[323781196,1714289439953,-538.39133421,0.00016438,2]
[323781197,1714289439962,-500.0,0.00016438,2]
[323781198,1714289439972,-500.0,0.00016438,2]
[323781199,1714289439981,-614.7,0.00016438,2]
[323781200,1714289439990,-506.83656751,0.00016438,2]
[323781201,1714289439999,-500.0,0.00016438,2]
[323781202,1714289440009,-849.29,0.00016438,2]
[323781203,1714289440018,-500.0,0.00016438,2]
[323781204,1714289440027,-500.0,0.00016438,2]
[323781205,1714289440036,-500.0,0.00016438,2]
[323781206,1714289440046,-502.18686303,0.00016438,2]
[323781207,1714289440055,-500.0,0.00016438,2]
[323781208,1714289440064,-500.0,0.00016438,2]
[323781209,1714289440073,-500.0,0.00016438,2]
[323781210,1714289440083,-500.0,0.00016438,2]
[323781211,1714289440092,-500.0,0.00016438,2]
[323781212,1714289440101,-500.0,0.00016438,2]
[323781213,1714289440110,-500.0,0.00016438,2]
[323781214,1714289440119,-311.59501311,0.00016438,2]
[323781215,1714289440127,-500.0,0.00016438,2]
[323781216,1714289440136,-579.5362795,0.00016438,2]
[323781217,1714289440145,-500.0,0.00016438,2]
[323781218,1714289440153,-500.0,0.00016438,2]
[323781219,1714289440162,-500.0,0.00016438,2]
[323781220,1714289440171,-765.66,0.00016438,2]
[323781221,1714289440180,-500.0,0.00016438,2]
[323781222,1714289440189,-500.0,0.00016438,2]
[323781223,1714289440198,-533.92,0.00016438,2]
[323781224,1714289440207,-500.0,0.00016438,2]
[323781225,1714289440216,-1602.69,0.00016438,2]
[323781226,1714289440225,-500.0,0.00016438,2]
[323781227,1714289440234,-502.33402262,0.00016438,2]
[323781228,1714289440243,-500.0,0.00016438,2]
[323781229,1714289440252,-500.0,0.00016438,2]
[323781230,1714289440261,-513.08,0.00016438,2]